[Event "Late-Titled-Tuesday-Blitz-September-19-2023"]
[Site "Chess.com"]
[Date "2023.09.19"]
[Round "11"]
[White "campochess"]
[Black "Taran2004"]
[Result "0-1"]
[WhiteElo "2205"]
[BlackElo "2438"]
[TimeControl "180+1"]
[EndTime "16:06:44 PDT"]
[Termination "Taran2004 won on time"]

1. e4 {[%clk 0:02:59.6]} 1... c6 {[%clk 0:02:59.5]} 2. Nc3 {[%clk 0:02:58]} 2...
d5 {[%clk 0:02:59.4]} 3. Nf3 {[%clk 0:02:57.9]} 3... dxe4 {[%clk 0:02:59.7]} 4.
Nxe4 {[%clk 0:02:57.4]} 4... Nf6 {[%clk 0:03:00.6]} 5. Ng3 {[%clk 0:02:57]} 5...
Bg4 {[%clk 0:02:58.7]} 6. h3 {[%clk 0:02:53]} 6... Bxf3 {[%clk 0:02:58.7]} 7.
Qxf3 {[%clk 0:02:53.1]} 7... e6 {[%clk 0:02:57.8]} 8. Qb3 {[%clk 0:02:45.4]}
8... Qb6 {[%clk 0:02:56.9]} 9. d4 {[%clk 0:02:41]} 9... Nbd7 {[%clk 0:02:49.2]}
10. Qxb6 {[%clk 0:02:36.2]} 10... axb6 {[%clk 0:02:50.1]} 11. Bd3 {[%clk
0:02:31.2]} 11... Nd5 {[%clk 0:02:47.4]} 12. c3 {[%clk 0:02:30.2]} 12... N7f6
{[%clk 0:02:47.2]} 13. O-O {[%clk 0:02:29.9]} 13... Bd6 {[%clk 0:02:46.7]} 14.
Ne4 {[%clk 0:02:27.9]} 14... Nxe4 {[%clk 0:02:46.8]} 15. Bxe4 {[%clk 0:02:27.9]}
15... Nf6 {[%clk 0:02:47.6]} 16. Bc2 {[%clk 0:02:27.7]} 16... O-O {[%clk
0:02:47.9]} 17. Bg5 {[%clk 0:02:26.1]} 17... Nd5 {[%clk 0:02:44.9]} 18. Rfe1
{[%clk 0:02:21.5]} 18... h6 {[%clk 0:02:44.8]} 19. Bd2 {[%clk 0:02:20.6]} 19...
b5 {[%clk 0:02:42.7]} 20. a3 {[%clk 0:02:20.2]} 20... Nb6 {[%clk 0:02:38.8]} 21.
Re4 {[%clk 0:02:17.5]} 21... Nc4 {[%clk 0:02:38.5]} 22. Bc1 {[%clk 0:02:14.6]}
22... b4 {[%clk 0:02:27.8]} 23. Bd3 {[%clk 0:02:09.3]} 23... b5 {[%clk
0:02:26.6]} 24. cxb4 {[%clk 0:02:04.5]} 24... Bxb4 {[%clk 0:02:23.9]} 25. Bxc4
{[%clk 0:01:57.8]} 25... bxc4 {[%clk 0:02:24.8]} 26. Rb1 {[%clk 0:01:52.8]}
26... Bd6 {[%clk 0:02:21.4]} 27. Re2 {[%clk 0:01:45]} 27... Rfb8 {[%clk
0:02:20]} 28. Rc2 {[%clk 0:01:42.2]} 28... Ra4 {[%clk 0:02:19.7]} 29. Ra1 {[%clk
0:01:29.4]} 29... Rb3 {[%clk 0:02:15.4]} 30. Kf1 {[%clk 0:01:28.2]} 30... Rd3
{[%clk 0:02:06.8]} 31. Ke2 {[%clk 0:01:27.9]} 31... Rxd4 {[%clk 0:02:04.9]} 32.
Be3 {[%clk 0:01:26.9]} 32... Rd3 {[%clk 0:02:04]} 33. Rac1 {[%clk 0:01:25.2]}
33... Rb3 {[%clk 0:01:56.9]} 34. Bd4 {[%clk 0:01:24]} 34... e5 {[%clk
0:01:51.5]} 35. Be3 {[%clk 0:01:18.3]} 35... f6 {[%clk 0:01:50.4]} 36. Rxc4
{[%clk 0:01:17.1]} 36... Rxc4 {[%clk 0:01:50.2]} 37. Rxc4 {[%clk 0:01:16.5]}
37... Rxb2+ {[%clk 0:01:50.8]} 38. Kd3 {[%clk 0:01:16.4]} 38... Bxa3 {[%clk
0:01:40.2]} 39. Rxc6 {[%clk 0:01:15.3]} 39... Rb7 {[%clk 0:01:36.9]} 40. h4
{[%clk 0:01:05]} 40... h5 {[%clk 0:01:34.2]} 41. Ke4 {[%clk 0:01:00.4]} 41...
Kf7 {[%clk 0:01:32.9]} 42. Ra6 {[%clk 0:00:47.8]} 42... Be7 {[%clk 0:01:28.5]}
43. Kd5 {[%clk 0:00:47.7]} 43... Rb5+ {[%clk 0:01:24.5]} 44. Kc4 {[%clk
0:00:44.1]} 44... Rb4+ {[%clk 0:01:24.3]} 45. Kd3 {[%clk 0:00:43.9]} 45... Rxh4
{[%clk 0:01:24]} 46. Ra7 {[%clk 0:00:39.6]} 46... Ke6 {[%clk 0:01:11.5]} 47.
Ra6+ {[%clk 0:00:39.6]} 47... Kf5 {[%clk 0:01:10]} 48. Ra7 {[%clk 0:00:39]}
48... Bd6 {[%clk 0:01:05.5]} 49. Rxg7 {[%clk 0:00:38.2]} 49... Rg4 {[%clk
0:01:05.9]} 50. Rh7 {[%clk 0:00:36.8]} 50... h4 {[%clk 0:01:00.5]} 51. Rh5+
{[%clk 0:00:34]} 51... Kg6 {[%clk 0:01:00.1]} 52. Rh6+ {[%clk 0:00:34.2]} 52...
Kg7 {[%clk 0:00:58.6]} 53. Rh5 {[%clk 0:00:24.9]} 53... Be7 {[%clk 0:00:51.1]}
54. Ke2 {[%clk 0:00:21.8]} 54... e4 {[%clk 0:00:50.4]} 55. Kf1 {[%clk
0:00:21.7]} 55... Kg6 {[%clk 0:00:48]} 56. Rd5 {[%clk 0:00:20.5]} 56... f5
{[%clk 0:00:41.3]} 57. Rd7 {[%clk 0:00:20.2]} 57... Kf6 {[%clk 0:00:39.3]} 58.
Bd4+ {[%clk 0:00:19.6]} 58... Ke6 {[%clk 0:00:39.5]} 59. Rb7 {[%clk 0:00:19.7]}
59... Rg8 {[%clk 0:00:38.6]} 60. Rb5 {[%clk 0:00:19.6]} 60... Rd8 {[%clk
0:00:37.3]} 61. Re5+ {[%clk 0:00:18.9]} 61... Kf7 {[%clk 0:00:33.4]} 62. Rxf5+
{[%clk 0:00:18.8]} 62... Kg6 {[%clk 0:00:33.5]} 63. Re5 {[%clk 0:00:18.1]} 63...
Bf6 {[%clk 0:00:33.5]} 64. Re6 {[%clk 0:00:18]} 64... Rxd4 {[%clk 0:00:32.9]}
65. Ke2 {[%clk 0:00:15.7]} 65... Kf5 {[%clk 0:00:32.8]} 66. Re8 {[%clk
0:00:15.1]} 66... Ra4 {[%clk 0:00:32.4]} 67. Rc8 {[%clk 0:00:13.4]} 67... Ra2+
{[%clk 0:00:32.1]} 68. Kf1 {[%clk 0:00:13.3]} 68... Ra1+ {[%clk 0:00:29.6]} 69.
Ke2 {[%clk 0:00:13.2]} 69... Rg1 {[%clk 0:00:30.2]} 70. Rc5+ {[%clk 0:00:11.7]}
70... Be5 {[%clk 0:00:29.8]} 71. Rc8 {[%clk 0:00:10.5]} 71... Rxg2 {[%clk
0:00:29.1]} 72. Rf8+ {[%clk 0:00:10.3]} 72... Bf6 {[%clk 0:00:29.4]} 73. Ke3
{[%clk 0:00:09.3]} 73... h3 {[%clk 0:00:28.7]} 74. Rf7 {[%clk 0:00:04.4]} 74...
Rg7 {[%clk 0:00:26.5]} 75. Rf8 {[%clk 0:00:04.1]} 75... Rh7 {[%clk 0:00:26.6]}
76. Ra8 {[%clk 0:00:03.1]} 76... h2 {[%clk 0:00:26.5]} 77. Ra5+ {[%clk
0:00:03.2]} 77... Be5 {[%clk 0:00:25.9]} 78. f4 {[%clk 0:00:03.4]} 78... exf3
{[%clk 0:00:24.9]} 0-1

[Event "Late-Titled-Tuesday-Blitz-September-19-2023"]
[Site "Chess.com"]
[Date "2023.09.19"]
[Round "11"]
[White "azikom"]
[Black "whiteglovethief"]
[Result "1-0"]
[WhiteElo "2627"]
[BlackElo "2527"]
[TimeControl "180+1"]
[EndTime "16:07:05 PDT"]
[Termination "azikom won by resignation"]

1. c4 {[%clk 0:02:58.8]} 1... Nf6 {[%clk 0:02:58.3]} 2. Nc3 {[%clk 0:02:56.5]}
2... g6 {[%clk 0:02:58.7]} 3. e4 {[%clk 0:02:53.8]} 3... d6 {[%clk 0:02:59.1]}
4. d4 {[%clk 0:02:54.2]} 4... Bg7 {[%clk 0:02:59.1]} 5. f3 {[%clk 0:02:54.7]}
5... O-O {[%clk 0:02:59]} 6. Bg5 {[%clk 0:02:55.2]} 6... Nbd7 {[%clk 0:02:53.2]}
7. Nh3 {[%clk 0:02:49.3]} 7... e5 {[%clk 0:02:52.8]} 8. d5 {[%clk 0:02:46.1]}
8... h6 {[%clk 0:02:52]} 9. Be3 {[%clk 0:02:43.1]} 9... Nc5 {[%clk 0:02:48.2]}
10. Nf2 {[%clk 0:02:41.4]} 10... a5 {[%clk 0:02:42.5]} 11. Qd2 {[%clk
0:02:34.3]} 11... h5 {[%clk 0:02:34.9]} 12. O-O-O {[%clk 0:02:30.9]} 12... Nfd7
{[%clk 0:02:25.4]} 13. g4 {[%clk 0:02:24.2]} 13... h4 {[%clk 0:02:23.8]} 14. Rg1
{[%clk 0:02:17.3]} 14... Nb6 {[%clk 0:02:19]} 15. Kb1 {[%clk 0:02:12.8]} 15...
f6 {[%clk 0:02:11]} 16. Be2 {[%clk 0:01:55.5]} 16... g5 {[%clk 0:02:08.4]} 17.
Qc2 {[%clk 0:01:51.9]} 17... Bd7 {[%clk 0:02:02.9]} 18. Rc1 {[%clk 0:01:44.8]}
18... a4 {[%clk 0:01:49]} 19. Rgd1 {[%clk 0:01:42.4]} 19... Rf7 {[%clk
0:01:40.2]} 20. Nb5 {[%clk 0:01:38.2]} 20... Bf8 {[%clk 0:01:36]} 21. Nd3 {[%clk
0:01:31.9]} 21... Qb8 {[%clk 0:01:24.1]} 22. Nxc5 {[%clk 0:01:25.1]} 22... dxc5
{[%clk 0:01:22.3]} 23. Qd2 {[%clk 0:01:22.4]} 23... Bd6 {[%clk 0:01:17.3]} 24.
Qe1 {[%clk 0:01:14.1]} 24... Bxb5 {[%clk 0:01:10.3]} 25. cxb5 {[%clk 0:01:10.4]}
25... Nd7 {[%clk 0:01:10.7]} 26. a3 {[%clk 0:01:06.5]} 26... Qa7 {[%clk
0:01:09.2]} 27. h3 {[%clk 0:01:03.6]} 27... Qa5 {[%clk 0:01:08.3]} 28. Qf1
{[%clk 0:01:02.2]} 28... b6 {[%clk 0:00:55.2]} 29. Ka2 {[%clk 0:01:01.3]} 29...
Kf8 {[%clk 0:00:46.7]} 30. Bd2 {[%clk 0:01:00.7]} 30... Qa7 {[%clk 0:00:45.5]}
31. Rc4 {[%clk 0:00:59.6]} 31... Qb7 {[%clk 0:00:40.1]} 32. Rdc1 {[%clk
0:00:56.7]} 32... Kg7 {[%clk 0:00:37.3]} 33. Bd1 {[%clk 0:00:56.1]} 33... Nf8
{[%clk 0:00:34.8]} 34. Rxa4 {[%clk 0:00:55.1]} 34... Rxa4 {[%clk 0:00:31]} 35.
Bxa4 {[%clk 0:00:53.3]} 35... Ng6 {[%clk 0:00:31.9]} 36. Bd1 {[%clk 0:00:43]}
36... Rf8 {[%clk 0:00:32]} 37. Rc4 {[%clk 0:00:42.3]} 37... Ra8 {[%clk
0:00:32.3]} 38. Ra4 {[%clk 0:00:42]} 38... Rxa4 {[%clk 0:00:30.2]} 39. Bxa4
{[%clk 0:00:41.4]} 39... Nf4 {[%clk 0:00:29.3]} 40. Bc2 {[%clk 0:00:32.9]} 40...
Nxd5 {[%clk 0:00:22.2]} 41. exd5 {[%clk 0:00:21.7]} 41... Qxd5+ {[%clk
0:00:23.1]} 42. Bb3 {[%clk 0:00:21.7]} 42... Qxd2 {[%clk 0:00:22.3]} 43. Qc4
{[%clk 0:00:22]} 43... e4 {[%clk 0:00:11]} 44. Qf7+ {[%clk 0:00:19.2]} 44... Kh6
{[%clk 0:00:11.2]} 45. Qxf6+ {[%clk 0:00:19.2]} 45... Kh7 {[%clk 0:00:10]} 46.
Qf7+ {[%clk 0:00:18.6]} 46... Kh6 {[%clk 0:00:10.5]} 47. Qe6+ {[%clk 0:00:14.7]}
47... Kh7 {[%clk 0:00:09]} 48. Qxe4+ {[%clk 0:00:14.5]} 48... Kg7 {[%clk
0:00:07.9]} 49. Bc2 {[%clk 0:00:12]} 49... Qd4 {[%clk 0:00:04.6]} 50. Qg6+
{[%clk 0:00:10.3]} 50... Kf8 {[%clk 0:00:04.8]} 51. Qf5+ {[%clk 0:00:10]} 51...
Ke8 {[%clk 0:00:02.7]} 52. Qxg5 {[%clk 0:00:09.2]} 52... Be5 {[%clk 0:00:01.8]}
53. Qg8+ {[%clk 0:00:08.1]} 53... Kd7 {[%clk 0:00:01.4]} 54. Qf7+ {[%clk
0:00:06.9]} 54... Kc8 {[%clk 0:00:01.2]} 55. Qb3 {[%clk 0:00:06.5]} 55... Kb7
{[%clk 0:00:01.5]} 56. a4 {[%clk 0:00:06.1]} 56... Kb8 {[%clk 0:00:02.4]} 57.
Qa3 {[%clk 0:00:05.7]} 57... c4 {[%clk 0:00:03.3]} 58. Qb4 {[%clk 0:00:05.6]}
58... c3 {[%clk 0:00:03.5]} 59. Qxd4 {[%clk 0:00:04.6]} 59... Bxd4 {[%clk
0:00:03.4]} 60. b4 {[%clk 0:00:04.8]} 60... c5 {[%clk 0:00:03.5]} 61. bxc5
{[%clk 0:00:04.7]} 61... Kc7 {[%clk 0:00:04.4]} 62. c6 {[%clk 0:00:03.9]} 62...
Kd6 {[%clk 0:00:02.5]} 63. Kb3 {[%clk 0:00:04.8]} 63... Be5 {[%clk 0:00:02.7]}
64. Kc4 {[%clk 0:00:04.9]} 64... Bf4 {[%clk 0:00:03.6]} 65. Kxc3 {[%clk
0:00:04.7]} 65... Bg5 {[%clk 0:00:04.2]} 66. Kc4 {[%clk 0:00:05.2]} 66... Bf6
{[%clk 0:00:04.8]} 67. Kd3 {[%clk 0:00:05.5]} 67... Bg5 {[%clk 0:00:05.5]} 68.
Bb3 {[%clk 0:00:06]} 68... Bf6 {[%clk 0:00:05.6]} 69. Ke4 {[%clk 0:00:06.4]}
69... Kc7 {[%clk 0:00:05.7]} 70. f4 {[%clk 0:00:07]} 70... Be7 {[%clk
0:00:06.3]} 71. g5 {[%clk 0:00:07.4]} 71... Bb4 {[%clk 0:00:07.2]} 72. f5 {[%clk
0:00:07.5]} 1-0

[Event "Late-Titled-Tuesday-Blitz-September-19-2023"]
[Site "Chess.com"]
[Date "2023.09.19"]
[Round "11"]
[White "Lady_Nika"]
[Black "jk13"]
[Result "1/2-1/2"]
[WhiteElo "2464"]
[BlackElo "2620"]
[TimeControl "180+1"]
[EndTime "16:07:35 PDT"]
[Termination "Game drawn by repetition"]

1. e4 {[%clk 0:03:00.9]} 1... e5 {[%clk 0:02:54.3]} 2. Nf3 {[%clk 0:03:00.6]}
2... Nc6 {[%clk 0:02:54.8]} 3. Bb5 {[%clk 0:03:00.4]} 3... a6 {[%clk 0:02:55.2]}
4. Bxc6 {[%clk 0:03:00.5]} 4... dxc6 {[%clk 0:02:55.1]} 5. O-O {[%clk
0:03:01.4]} 5... f6 {[%clk 0:02:55.7]} 6. d4 {[%clk 0:03:00.6]} 6... Bg4 {[%clk
0:02:56]} 7. dxe5 {[%clk 0:02:56.6]} 7... Qxd1 {[%clk 0:02:56.9]} 8. Rxd1 {[%clk
0:02:55.2]} 8... Bxf3 {[%clk 0:02:57.6]} 9. gxf3 {[%clk 0:02:55.5]} 9... fxe5
{[%clk 0:02:58.5]} 10. Nc3 {[%clk 0:02:55.3]} 10... Nf6 {[%clk 0:02:58.1]} 11.
Be3 {[%clk 0:02:53.1]} 11... Bd6 {[%clk 0:02:56.1]} 12. Kf1 {[%clk 0:02:53.3]}
12... Ke7 {[%clk 0:02:50.8]} 13. Ke2 {[%clk 0:02:53.1]} 13... Ke6 {[%clk
0:02:51.5]} 14. Na4 {[%clk 0:02:52.5]} 14... Raf8 {[%clk 0:02:44.7]} 15. Nc5+
{[%clk 0:02:48.6]} 15... Bxc5 {[%clk 0:02:43.5]} 16. Bxc5 {[%clk 0:02:48.4]}
16... Rf7 {[%clk 0:02:43.7]} 17. Rd3 {[%clk 0:02:47.4]} 17... Nh5 {[%clk
0:02:43.6]} 18. Be3 {[%clk 0:02:47]} 18... Rhf8 {[%clk 0:02:43.2]} 19. Bd2
{[%clk 0:02:42.8]} 19... Rf6 {[%clk 0:02:29.3]} 20. Rg1 {[%clk 0:02:41.6]} 20...
g6 {[%clk 0:02:23.9]} 21. Rg5 {[%clk 0:02:38.2]} 21... Nf4+ {[%clk 0:02:13.9]}
22. Bxf4 {[%clk 0:02:37.2]} 22... Rxf4 {[%clk 0:02:14.8]} 23. Rc3 {[%clk
0:02:29.2]} 23... Kd6 {[%clk 0:01:58.2]} 24. Rd3+ {[%clk 0:02:25.3]} 24... Ke6
{[%clk 0:01:58.5]} 25. Rc3 {[%clk 0:02:25.2]} 25... Kf6 {[%clk 0:01:55.4]} 26.
Rg3 {[%clk 0:02:17.8]} 26... Rh4 {[%clk 0:01:54.3]} 27. h3 {[%clk 0:02:17.5]}
27... Rd8 {[%clk 0:01:53.6]} 28. Rd3 {[%clk 0:02:15.1]} 28... Rd6 {[%clk
0:01:53.3]} 29. Ke3 {[%clk 0:02:13.8]} 29... g5 {[%clk 0:01:49.1]} 30. c4 {[%clk
0:02:08]} 30... Rxd3+ {[%clk 0:01:42.7]} 31. Kxd3 {[%clk 0:02:08]} 31... c5
{[%clk 0:01:36.9]} 32. Ke3 {[%clk 0:02:06.4]} 32... h6 {[%clk 0:01:35.6]} 33.
Kd3 {[%clk 0:02:05.8]} 33... Ke6 {[%clk 0:01:34.2]} 34. Ke3 {[%clk 0:02:05.4]}
34... Rf4 {[%clk 0:01:29.3]} 35. Rg4 {[%clk 0:02:03.8]} 35... Rf7 {[%clk
0:01:15.5]} 36. h4 {[%clk 0:02:00.7]} 36... Kf6 {[%clk 0:01:09.3]} 37. hxg5+
{[%clk 0:01:56.9]} 37... hxg5 {[%clk 0:01:10.2]} 38. Rg1 {[%clk 0:01:56.2]}
38... Rd7 {[%clk 0:01:09.9]} 39. Rh1 {[%clk 0:01:55.4]} 39... Kg7 {[%clk
0:00:55.2]} 40. Rh5 {[%clk 0:01:52.6]} 40... Kg6 {[%clk 0:00:55.6]} 41. Rh8
{[%clk 0:01:52.3]} 41... a5 {[%clk 0:00:50.6]} 42. Re8 {[%clk 0:01:48.8]} 42...
Kf6 {[%clk 0:00:49.9]} 43. Rf8+ {[%clk 0:01:47.5]} 43... Rf7 {[%clk 0:00:43.8]}
44. Rd8 {[%clk 0:01:40.5]} 44... b6 {[%clk 0:00:40.9]} 45. b3 {[%clk 0:01:33.8]}
45... Rh7 {[%clk 0:00:28.7]} 46. Rf8+ {[%clk 0:01:31.9]} 46... Ke6 {[%clk
0:00:24.3]} 47. Re8+ {[%clk 0:01:26.3]} 47... Kf6 {[%clk 0:00:22.6]} 48. Rf8+
{[%clk 0:01:25.9]} 48... Rf7 {[%clk 0:00:23.3]} 49. Rh8 {[%clk 0:01:25.1]} 49...
Re7 {[%clk 0:00:22.6]} 50. Rh6+ {[%clk 0:01:24.2]} 50... Kg7 {[%clk 0:00:21.8]}
51. Rh5 {[%clk 0:01:21.4]} 51... Kg6 {[%clk 0:00:22]} 52. Rh8 {[%clk 0:01:21.3]}
52... Kg7 {[%clk 0:00:18.7]} 53. Rd8 {[%clk 0:01:20.9]} 53... Kg6 {[%clk
0:00:17.9]} 54. a3 {[%clk 0:01:20.7]} 54... Kf6 {[%clk 0:00:17.5]} 55. Kd3
{[%clk 0:01:19.5]} 55... Kg6 {[%clk 0:00:17]} 56. Ke3 {[%clk 0:01:14.1]} 56...
Kh5 {[%clk 0:00:16.4]} 57. Rg8 {[%clk 0:01:09.8]} 57... Kh6 {[%clk 0:00:16.3]}
58. Rd8 {[%clk 0:01:05.3]} 58... Kg6 {[%clk 0:00:16.2]} 59. Rd1 {[%clk
0:01:05.1]} 59... Kf6 {[%clk 0:00:15.4]} 60. Rb1 {[%clk 0:01:04.4]} 60... Rh7
{[%clk 0:00:14.2]} 61. b4 {[%clk 0:01:04.3]} 61... cxb4 {[%clk 0:00:14.3]} 62.
axb4 {[%clk 0:01:04.4]} 62... axb4 {[%clk 0:00:15.2]} 63. Rxb4 {[%clk
0:01:04.2]} 63... Rh3 {[%clk 0:00:15.9]} 64. Ke2 {[%clk 0:01:02.7]} 64... Rh1
{[%clk 0:00:15.1]} 65. c5 {[%clk 0:00:55.6]} 65... bxc5 {[%clk 0:00:16]} 66. Rc4
{[%clk 0:00:55.3]} 66... Ke6 {[%clk 0:00:16.2]} 67. Rxc5 {[%clk 0:00:55.3]}
67... Rh7 {[%clk 0:00:15.5]} 68. Rc6+ {[%clk 0:00:54.1]} 68... Kd7 {[%clk
0:00:15.8]} 69. Rg6 {[%clk 0:00:54]} 69... Rh5 {[%clk 0:00:16.5]} 70. Kd3 {[%clk
0:00:47.6]} 70... Ke7 {[%clk 0:00:14]} 71. Kc4 {[%clk 0:00:46.7]} 71... Rh3
{[%clk 0:00:10.9]} 72. Rxg5 {[%clk 0:00:45.8]} 72... Rxf3 {[%clk 0:00:11.1]} 73.
Rxe5+ {[%clk 0:00:45.6]} 73... Kf6 {[%clk 0:00:10.1]} 74. Re8 {[%clk 0:00:38.1]}
74... Kf7 {[%clk 0:00:08.1]} 75. Rc8 {[%clk 0:00:34.7]} 75... Rxf2 {[%clk
0:00:08.2]} 76. Rxc7+ {[%clk 0:00:33.9]} 76... Ke6 {[%clk 0:00:08.9]} 77. Kd4
{[%clk 0:00:33.1]} 77... Rd2+ {[%clk 0:00:07.7]} 78. Ke3 {[%clk 0:00:33.2]}
78... Ra2 {[%clk 0:00:07.7]} 79. Rc6+ {[%clk 0:00:32.7]} 79... Ke5 {[%clk
0:00:06.5]} 80. Rc5+ {[%clk 0:00:32.4]} 80... Ke6 {[%clk 0:00:06.8]} 81. Rb5
{[%clk 0:00:31.3]} 81... Ra1 {[%clk 0:00:06.2]} 82. Rb2 {[%clk 0:00:28.5]} 82...
Re1+ {[%clk 0:00:05.9]} 83. Re2 {[%clk 0:00:25.6]} 83... Ra1 {[%clk 0:00:05.6]}
84. Rf2 {[%clk 0:00:24.2]} 84... Re1+ {[%clk 0:00:05.5]} 85. Kf4 {[%clk
0:00:24.1]} 85... Ra1 {[%clk 0:00:03.6]} 86. Rb2 {[%clk 0:00:19.1]} 86... Rf1+
{[%clk 0:00:03.4]} 87. Ke3 {[%clk 0:00:19.3]} 87... Re1+ {[%clk 0:00:03.9]} 88.
Kd4 {[%clk 0:00:19.6]} 88... Rd1+ {[%clk 0:00:04.3]} 89. Ke3 {[%clk 0:00:19.6]}
89... Re1+ {[%clk 0:00:04.7]} 1/2-1/2